fUST/lending_fUST_20251127
["ID","MTS","AMOUNT","RATE_DAILY","PERIOD"]
[394980913,1764251534051,-500.0,0.00016438,2]
[394980914,1764251534061,-2689.91184411,0.00016438,2]
[394980915,1764251534072,-154.1856472,0.00016438,2]
[394980916,1764251534081,-3000.0,0.00016438,2]
[394980917,1764251534090,-3000.0,0.00016438,2]
[394980918,1764251534100,-3000.0,0.00016438,2]
[394980919,1764251534109,-258.69891421,0.00016438,2]
[394980920,1764251534118,-150.0,0.00016509,2]
[394980921,1764251534127,-500.0,0.00016518,2]
[394980922,1764251534137,-500.0,0.00016554,2]
[394980923,1764251534146,-800.0,0.00016586,2]
[394980924,1764251534155,-500.0,0.00016712,2]
[394980925,1764251534165,-500.0,0.00016748,2]
[394980926,1764251534174,-214.89653887,0.00016812,2]
[394980927,1764251534183,-200.0,0.00016812,2]
[394980928,1764251534193,-500.0,0.00016812,2]
[394980929,1764251534202,-176.41581255,0.00016813,2]
[394980930,1764251534211,-166.0,0.00016813,2]
[394980931,1764251534220,-162.0,0.00016813,2]
[394980932,1764251534229,-162.0,0.00016813,2]
[394980933,1764251534239,-162.0,0.00016813,2]
[394980934,1764251534247,-166.0,0.00016813,2]
[394980935,1764251534257,-162.0,0.00016813,2]
[394980936,1764251534267,-162.0,0.00016813,2]
[394980937,1764251534276,-166.0,0.00016813,2]
[394980938,1764251534285,-162.0,0.00016813,2]
[394980939,1764251534294,-162.0,0.00016813,2]
[394980940,1764251534303,-166.0,0.00016813,2]
[394980941,1764251534312,-166.63820667,0.00016813,2]
[394980942,1764251534321,-166.0,0.00016813,2]
[394980943,1764251534330,-166.0,0.00016813,2]
[394980944,1764251534339,-166.0,0.00016813,2]
[394980945,1764251534348,-166.0,0.00016813,2]
[394980946,1764251534358,-172.0,0.00016813,2]
[394980947,1764251534368,-333.0,0.00016813,2]
[394980948,1764251534377,-333.0,0.00016813,2]
[394980949,1764251534386,-166.0,0.00016813,2]
[394980950,1764251534396,-166.0,0.00016813,2]
[394980951,1764251534406,-333.0,0.00016813,2]
[394980952,1764251534415,-166.0,0.00016813,2]
[394980953,1764251534424,-333.0,0.00016813,2]
[394980954,1764251534434,-166.0,0.00016813,2]
[394980955,1764251534443,-333.0,0.00016813,2]
[394980956,1764251534452,-166.0,0.00016813,2]
[394980957,1764251534462,-172.0,0.00016813,2]
[394980958,1764251534471,-333.0,0.00016813,2]
[394980959,1764251534480,-333.0,0.00016813,2]
[394980960,1764251534490,-333.0,0.00016813,2]
[394980961,1764251534499,-333.0,0.00016813,2]
[394980962,1764251534509,-333.0,0.00016813,2]
[394980963,1764251534518,-333.0,0.00016813,2]
[394980964,1764251534527,-333.0,0.00016813,2]
[394980965,1764251534537,-333.0,0.00016813,2]
[394980966,1764251534547,-333.0,0.00016813,2]
[394980967,1764251534556,-333.0,0.00016813,2]
[394980968,1764251534566,-333.0,0.00016813,2]
[394980969,1764251534575,-333.0,0.00016813,2]
[394980970,1764251534585,-333.0,0.00016813,2]
[394980971,1764251534595,-333.0,0.00016813,2]
[394980972,1764251534605,-333.0,0.00016813,2]
[394980973,1764251534615,-333.0,0.00016813,2]
[394980974,1764251534625,-333.0,0.00016813,2]
[394980975,1764251534635,-333.0,0.00016813,2]
[394980976,1764251534645,-333.0,0.00016813,2]
[394980977,1764251534654,-333.0,0.00016813,2]
[394980978,1764251534664,-333.0,0.00016813,2]
[394980979,1764251534674,-333.0,0.00016813,2]
[394980980,1764251534683,-333.0,0.00016813,2]
[394980981,1764251534692,-333.0,0.00016813,2]
[394980982,1764251534702,-333.0,0.00016813,2]
[394980983,1764251534711,-333.0,0.00016813,2]
[394980984,1764251534721,-333.0,0.00016813,2]
[394980985,1764251534731,-333.0,0.00016813,2]
[394980986,1764251534742,-333.0,0.00016813,2]
[394980987,1764251534752,-333.0,0.00016813,2]
[394980988,1764251534763,-333.0,0.00016813,2]
[394980989,1764251534773,-333.0,0.00016813,2]
[394980990,1764251534782,-333.0,0.00016813,2]
[394980991,1764251534793,-333.0,0.00016813,2]
[394980992,1764251534804,-333.0,0.00016813,2]
[394980993,1764251534813,-333.0,0.00016813,2]
[394980994,1764251534822,-333.0,0.00016813,2]
[394980995,1764251534832,-333.0,0.00016813,2]
[394980996,1764251534841,-333.0,0.00016813,2]
[394980997,1764251534851,-333.0,0.00016813,2]
[394980998,1764251534860,-333.0,0.00016813,2]
[394980999,1764251534869,-461.52133087,0.00016813,2]
[394981000,1764251534880,-174.0,0.00016813,2]
[394981001,1764251534889,-174.0,0.00016813,2]
[394981002,1764251534900,-175.5626929,0.00016813,2]
[394981003,1764251534909,-151.0,0.00016813,2]
[394981004,1764251534918,-151.0,0.00016813,2]
[394981005,1764251534927,-151.0,0.00016813,2]
[394981006,1764251534936,-151.0,0.00016813,2]
[394981007,1764251534945,-151.0,0.00016813,2]
[394981008,1764251534955,-151.0,0.00016813,2]
[394981009,1764251534964,-151.0,0.00016813,2]
[394981010,1764251534973,-151.0,0.00016813,2]
[394981011,1764251534983,-151.0,0.00016813,2]
[394981012,1764251534992,-299.85423426,0.00016813,2]
[394981013,1764251535001,-152.0,0.00016813,2]
[394981014,1764251535011,-152.0,0.00016813,2]
[394981015,1764251535020,-152.0,0.00016813,2]
[394981016,1764251535029,-152.0,0.00016813,2]
[394981017,1764251535038,-152.0,0.00016813,2]
[394981018,1764251535047,-152.0,0.00016813,2]
[394981019,1764251535057,-152.0,0.00016813,2]
[394981020,1764251535066,-152.0,0.00016813,2]
[394981021,1764251535075,-152.0,0.00016813,2]
[394981022,1764251535084,-152.0,0.00016813,2]
[394981023,1764251535095,-152.0,0.00016813,2]
[394981024,1764251535106,-152.0,0.00016813,2]
[394981025,1764251535116,-152.0,0.00016813,2]
[394981026,1764251535126,-152.0,0.00016813,2]
[394981027,1764251535137,-152.0,0.00016813,2]
[394981028,1764251535146,-152.0,0.00016813,2]
[394981029,1764251535155,-152.0,0.00016813,2]
[394981030,1764251535164,-152.0,0.00016813,2]
[394981031,1764251535173,-152.0,0.00016813,2]
[394981032,1764251535183,-152.0,0.00016813,2]
[394981033,1764251535191,-152.0,0.00016813,2]
[394981034,1764251535201,-152.0,0.00016813,2]
[394981035,1764251535210,-152.0,0.00016813,2]
[394981036,1764251535219,-152.0,0.00016813,2]
[394981037,1764251535228,-152.0,0.00016813,2]
[394981038,1764251535238,-152.0,0.00016813,2]
[394981039,1764251535247,-152.0,0.00016813,2]
[394981040,1764251535256,-152.0,0.00016813,2]
[394981041,1764251535265,-152.0,0.00016813,2]
[394981042,1764251535275,-152.0,0.00016813,2]
[394981043,1764251535285,-152.0,0.00016813,2]
[394981044,1764251535294,-152.0,0.00016813,2]
[394981045,1764251535303,-152.0,0.00016813,2]
[394981046,1764251535312,-152.0,0.00016813,2]
[394981047,1764251535321,-152.0,0.00016813,2]
[394981048,1764251535330,-152.0,0.00016813,2]
[394981049,1764251535339,-237.50174827,0.00016813,2]
[394981050,1764251535348,-800.0,0.00016956,2]
[394981051,1764251535358,-224.31,0.00016962,2]
[394981052,1764251535415,-224.3,0.00016986,2]
[394981053,1764251535436,-269.586166,0.00016986,2]
[394981054,1764251535445,-269.586166,0.00016986,2]
[394981055,1764251535454,-269.586166,0.00016986,2]
[394981056,1764251535463,-269.586166,0.00016986,2]
[394981057,1764251535472,-760.0,0.00016986,2]
[394981058,1764251535481,-500.0,0.00016986,2]
[394981059,1764251535491,-3500.0,0.00016986,2]
[394981060,1764251535500,-3500.0,0.00016986,2]
[394981061,1764251535509,-1645.3403303,0.00016986,2]
[394981062,1764251535518,-1000.0,0.00017,17]
[394981063,1764251535528,-200.0,0.00017036,2]
[394981064,1764251535537,-151.0,0.00017037,2]
[394981065,1764251535546,-164.86,0.00017111,2]
[394981066,1764251535557,-384.1781514,0.00017128,2]
[394981067,1764251535566,-601.8192056,0.00017128,2]
[394981068,1764251535576,-595.8577247,0.00017128,2]
[394981069,1764251535585,-514.3113358,0.00017182,2]
[394981070,1764251535595,-164.9234344,0.00017182,2]
[394981071,1764251535604,-298.4570443,0.00017182,2]
[394981072,1764251535615,-595.8577247,0.00017182,2]
[394981073,1764251535625,-800.0,0.00017186,2]
[394981074,1764251535635,-500.0,0.0001726,2]
[394981075,1764251535644,-151.0,0.000173,2]
[394981076,1764251535655,-151.0,0.000173,2]
[394981077,1764251535665,-151.0,0.000173,2]
[394981078,1764251535674,-800.0,0.00017323,2]
[394981079,1764251535684,-1000.0,0.00017345,5]
[394981080,1764251535693,-200.0,0.00017533,2]
[394981081,1764251535703,-718.05138,0.00017534,2]
[394981082,1764251535712,-718.05138,0.00017534,2]
[394981083,1764251535721,-718.05138,0.00017534,2]
[394981084,1764251535731,-718.05138,0.00017534,2]
[394981085,1764251535741,-860.0,0.00017534,2]
[394981086,1764251535755,-500.0,0.00017534,2]
[394981087,1764251535765,-4000.0,0.00017534,2]
[394981088,1764251535774,-4000.0,0.00017534,2]
[394981089,1764251535784,-500.0,0.00017615,2]
[394981090,1764251535794,-448.33530735,0.000177,15]
[394981091,1764251535803,-188.41,0.00017745,2]
[394981092,1764251535813,-200.0,0.00017799,2]
[394981093,1764251535823,-353.54508592,0.000178,3]
[394981094,1764251535833,-858.647064,0.000178,3]
[394981095,1764251535842,-151.0,0.000178,2]
[394981096,1764251535852,-16541.8192336,0.000178,3]
[394981097,1764251535861,-500.01,0.00017808,2]
[394981098,1764251535870,-500.0,0.00017886,2]
[394981099,1764251535879,-200.0,0.00017949,2]
[394981100,1764251535888,-301.6071529,0.0001795,2]
[394981101,1764251535897,-301.6071529,0.0001795,2]
[394981102,1764251535906,-645.9268831,0.0001795,2]
[394981103,1764251535916,-1189.4842641,0.0001795,2]
[394981104,1764251535925,-595.8577247,0.0001795,2]
[394981105,1764251535934,-358.9972423,0.0001795,2]
[394981106,1764251535943,-301.6071529,0.0001795,2]
[394981107,1764251535952,-151.000176,0.00018082,2]
[394981108,1764251535963,-960.0,0.00018082,2]
[394981109,1764251535973,-1900.0,0.00018082,2]
[394981110,1764251535984,-500.0,0.00018082,2]
[394981111,1764251535994,-4500.0,0.00018082,2]
[394981112,1764251536004,-4500.0,0.00018082,2]
[394981113,1764251536014,-800.0,0.00018093,2]
[394981114,1764251536024,-151.0,0.000182,2]
[394981115,1764251536033,-151.0,0.000182,2]
[394981116,1764251536042,-151.0,0.000182,2]
[394981117,1764251536051,-800.0,0.00018296,2]
[394981118,1764251536060,-869.92722556,0.00018313,2]
[394981119,1764251536069,-298.10509791,0.00018349,2]
[394981120,1764251536079,-500.0,0.00018354,2]
[394981121,1764251536087,-500.0,0.00018356,2]
[394981122,1764251536097,-600.0,0.00018366,2]
[394981123,1764251536105,-211.96,0.00018379,2]
[394981124,1764251536115,-151.0,0.00018401,2]
[394981125,1764251536124,-500.0,0.00018488,2]
[394981126,1764251536133,-243.253304,0.00018493,2]
[394981127,1764251536142,-500.0,0.00018504,2]
[394981128,1764251536151,-311.9680879,0.00018526,2]
[394981129,1764251536161,-770.0,0.000186,2]
[394981130,1764251536170,-1060.0,0.0001863,2]
[394981131,1764251536179,-500.0,0.0001863,2]
[394981132,1764251536187,-5000.0,0.0001863,2]
[394981133,1764251536196,-5000.0,0.0001863,2]
[394981134,1764251536206,-800.0,0.00018646,2]
[394981135,1764251536215,-821.10475926,0.00018689,2]
[394981136,1764251536224,-200.0,0.00018812,2]
[394981137,1764251536234,-333.0,0.00018813,2]
[394981138,1764251536244,-333.0,0.00018813,2]
[394981139,1764251536255,-333.0,0.00018813,2]
[394981140,1764251536265,-333.0,0.00018813,2]
[394981141,1764251536275,-333.0,0.00018813,2]
[394981142,1764251536284,-333.0,0.00018813,2]
[394981143,1764251536294,-333.0,0.00018813,2]
[394981144,1764251536304,-333.0,0.00018813,2]
[394981145,1764251536313,-333.0,0.00018813,2]
[394981146,1764251536324,-333.0,0.00018813,2]
[394981147,1764251536335,-333.0,0.00018813,2]
[394981148,1764251536348,-333.0,0.00018813,2]
[394981149,1764251536368,-333.0,0.00018813,2]
[394981150,1764251536387,-333.0,0.00018813,2]
[394981151,1764251536397,-333.0,0.00018813,2]
[394981152,1764251536408,-333.0,0.00018813,2]
[394981153,1764251536420,-333.0,0.00018813,2]
[394981154,1764251536430,-333.0,0.00018813,2]
[394981155,1764251536439,-333.0,0.00018813,2]
[394981156,1764251536793,-333.0,0.00018813,2]
[394981157,1764251536809,-500.0,0.00018904,2]
[394981158,1764251536819,-448.33530735,0.00018961,16]
[394981159,1764251536832,-160.0,0.00018999,2]
[394981160,1764251536843,-500.0,0.00019,7]
[394981161,1764251536854,-500.0,0.00019,7]
[394981162,1764251536864,-500.0,0.00019,7]
[394981163,1764251536874,-500.0,0.00019,7]
[394981164,1764251536884,-500.0,0.00019,7]
[394981165,1764251536894,-219.99,0.00019,7]
[394981166,1764251536903,-500.0,0.00019,7]
[394981167,1764251536913,-500.0,0.00019,7]
[394981168,1764251536923,-500.0,0.00019,7]
[394981169,1764251536933,-500.0,0.00019,7]
[394981170,1764251536943,-500.0,0.00019,7]
[394981171,1764251536952,-500.0,0.00019,7]
[394981172,1764251536962,-500.0,0.00019,7]
[394981173,1764251536972,-500.0,0.00019,7]
[394981174,1764251536981,-500.0,0.00019,7]
[394981175,1764251536990,-500.0,0.00019,7]
[394981176,1764251537000,-500.0,0.00019,7]
[394981177,1764251537009,-500.0,0.00019,7]
[394981178,1764251537019,-500.0,0.00019,7]
[394981179,1764251537029,-500.0,0.00019,7]
[394981180,1764251537039,-500.0,0.00019,7]
[394981181,1764251537048,-500.0,0.00019,7]
[394981182,1764251537058,-500.0,0.00019,7]
[394981183,1764251537067,-500.0,0.00019,7]
[394981184,1764251537077,-500.0,0.00019,7]
[394981185,1764251537088,-500.0,0.00019,7]
[394981186,1764251537099,-500.0,0.00019,7]
[394981187,1764251537108,-500.0,0.00019,7]
[394981188,1764251537118,-500.0,0.00019,7]
[394981189,1764251537128,-353.54508592,0.00019,7]
[394981190,1764251537138,-500.0,0.00019,7]
[394981191,1764251537148,-500.0,0.00019,7]
[394981192,1764251537158,-500.0,0.00019,7]
[394981193,1764251537168,-500.0,0.00019,7]
[394981194,1764251537177,-500.0,0.00019,7]
[394981195,1764251537187,-500.0,0.00019,7]
[394981196,1764251537198,-500.0,0.00019,7]
[394981197,1764251537208,-500.0,0.00019,7]
[394981198,1764251537218,-500.0,0.00019,7]
[394981199,1764251537228,-500.0,0.00019,7]
[394981200,1764251537240,-500.0,0.00019,7]
[394981201,1764251537250,-500.0,0.00019,7]
[394981202,1764251537259,-500.0,0.00019,7]
[394981203,1764251537269,-500.0,0.00019,7]
[394981204,1764251537278,-500.0,0.00019,7]
[394981205,1764251537288,-500.0,0.00019,7]
[394981206,1764251537298,-500.0,0.00019,7]
[394981207,1764251537307,-500.0,0.00019,7]
[394981208,1764251537317,-500.0,0.00019,7]
[394981209,1764251537327,-500.0,0.00019,7]
[394981210,1764251537336,-500.0,0.00019,7]
[394981211,1764251537346,-500.0,0.00019,7]
[394981212,1764251537355,-500.0,0.00019,7]
[394981213,1764251537365,-500.0,0.00019,7]
[394981214,1764251537375,-500.0,0.00019,7]
[394981215,1764251537384,-500.0,0.00019,7]
[394981216,1764251537393,-500.0,0.00019,7]
[394981217,1764251537402,-500.0,0.00019,7]
[394981218,1764251537412,-500.0,0.00019,7]
[394981219,1764251537421,-500.0,0.00019,7]
[394981220,1764251537432,-500.0,0.00019,7]
[394981221,1764251537442,-500.0,0.00019,7]
[394981222,1764251537452,-500.0,0.00019,7]
[394981223,1764251537462,-500.0,0.00019,7]
[394981224,1764251537471,-500.0,0.00019,7]
[394981225,1764251537481,-500.0,0.00019,7]
[394981226,1764251537491,-500.0,0.00019,7]
[394981227,1764251537501,-500.0,0.00019,7]
[394981228,1764251537511,-500.0,0.00019,7]
[394981229,1764251537521,-500.0,0.00019,7]
[394981230,1764251537531,-500.0,0.00019,7]
[394981231,1764251537540,-604.4,0.00019,7]
[394981232,1764251537549,-151.0,0.00019,2]
[394981233,1764251537559,-1000.0,0.00019,19]
[394981234,1764251537569,-235.51,0.00019013,2]
[394981235,1764251537578,-151.0,0.000191,2]
[394981236,1764251537587,-151.0,0.000191,2]
[394981237,1764251537597,-151.0,0.000191,2]
[394981238,1764251537606,-800.0,0.00019105,2]
[394981239,1764251537617,-160.0,0.00019177,2]
[394981240,1764251537626,-151.0,0.00019178,2]
[394981241,1764251537636,-151.64502,0.00019178,2]
[394981242,1764251537645,-1900.0,0.00019178,2]
[394981243,1764251537654,-151.0,0.00019178,2]
[394981244,1764251537664,-151.02901592,0.00019178,2]
[394981245,1764251537674,-500.0,0.00019178,2]
[394981246,1764251537683,-151.0,0.00019178,2]
[394981247,1764251537693,-151.0,0.00019178,2]
[394981248,1764251537702,-151.0,0.00019178,2]
[394981249,1764251537712,-151.0,0.00019178,2]
[394981250,1764251537721,-151.0,0.00019178,2]
[394981251,1764251537731,-151.0,0.00019178,2]
[394981252,1764251537740,-1294.744509,0.00019178,2]
[394981253,1764251537754,-1294.744509,0.00019178,2]
[394981254,1764251537763,-1294.744509,0.00019178,2]
[394981255,1764251537773,-1294.744509,0.00019178,2]
[394981256,1764251537783,-150.0,0.00019178,2]
[394981257,1764251537794,-5500.0,0.00019178,2]
[394981258,1764251537807,-2411.67516577,0.00019178,2]
[394981259,1764251537816,-150.0,0.00019178,2]
[394981260,1764251537827,-500.0,0.00019184,2]
[394981261,1764251537837,-500.0,0.00019191,2]
[394981262,1764251537846,-500.0,0.00019197,2]
[394981263,1764251537856,-500.0,0.00019224,2]
[394981264,1764251537865,-269.586166,0.00019235,7]
[394981265,1764251537875,-269.586166,0.00019235,7]
[394981266,1764251537884,-269.586166,0.00019235,7]
[394981267,1764251537893,-269.586166,0.00019235,7]
[394981268,1764251537902,-858.647064,0.00019252,2]
[394981269,1764251537911,-800.0,0.00019299,2]
[394981270,1764251537920,-300.0,0.00019315,2]
[394981271,1764251537929,-800.0,0.0001933,2]
[394981272,1764251537939,-330.3339,0.00019346,7]
[394981273,1764251537948,-600.0,0.000194,2]
[394981274,1764251537957,-600.0,0.000194,2]
[394981275,1764251537967,-151.0,0.000194,7]
[394981276,1764251537976,-151.0,0.000194,7]
[394981277,1764251537986,-151.0,0.000194,7]
[394981278,1764251537996,-718.05138,0.000194,7]
[394981279,1764251538006,-718.05138,0.000194,7]
[394981280,1764251538016,-718.05138,0.000194,7]
[394981281,1764251538027,-718.05138,0.000194,7]
[394981282,1764251538036,-159.671883,0.00019419,3]
[394981283,1764251538046,-192.0890757,0.00019446,2]
[394981284,1764251538055,-183.9018207,0.00019446,2]
[394981285,1764251538064,-192.0890757,0.00019446,2]
[394981286,1764251538073,-332.9048667,0.00019446,2]
[394981287,1764251538082,-1191.7154494,0.00019446,2]
[394981288,1764251538091,-192.0890757,0.00019446,2]
[394981289,1764251538101,-595.8577247,0.00019446,2]
[394981290,1764251538110,-192.0890757,0.00019446,2]
[394981291,1764251538120,-595.8577247,0.00019446,2]
[394981292,1764251538130,-192.0890757,0.00019446,2]
[394981293,1764251538140,-500.0,0.00019452,2]
[394981294,1764251538149,-450.0,0.00019452,2]
[394981295,1764251538159,-315.31222893,0.00019499,2]
[394981296,1764251538168,-4951.5351343,0.000195,5]
[394981297,1764251538178,-1021.784884,0.000195,2]
[394981298,1764251538187,-396.683205,0.00019511,2]
[394981299,1764251538197,-500.0,0.00019528,2]
[394981300,1764251538207,-500.0,0.00019555,2]
[394981301,1764251538218,-600.0,0.00019589,2]
[394981302,1764251538228,-800.0,0.00019619,2]
[394981303,1764251538238,-500.0,0.00019675,2]
[394981304,1764251538247,-500.0,0.00019726,2]
[394981305,1764251538256,-250.0,0.00019726,2]
[394981306,1764251538265,-4062.68210159,0.00019726,2]
[394981307,1764251538274,-699.82962854,0.00019726,2]
[394981308,1764251538283,-800.0,0.0001974,2]
[394981309,1764251538292,-500.0,0.00019756,2]
[394981310,1764251538301,-1132.633421,0.0001976,5]
[394981311,1764251538311,-1000.0,0.0001978,5]
[394981312,1764251538320,-1650.488769,0.000198,5]
[394981313,1764251538330,-1000.0,0.000198,5]
[394981314,1764251538340,-1294.744509,0.000198,2]
[394981315,1764251538349,-1294.744509,0.000198,2]
[394981316,1764251538359,-1294.744509,0.000198,2]
[394981317,1764251538369,-1294.744509,0.000198,2]
[394981318,1764251538378,-1000.0,0.0001982,5]
[394981319,1764251538387,-1000.0,0.0001982,5]
[394981320,1764251538396,-1000.0,0.0001984,5]
[394981321,1764251538405,-1000.0,0.0001984,5]
[394981322,1764251538414,-1000.0,0.0001986,5]
[394981323,1764251538423,-1000.0,0.0001986,5]
[394981324,1764251538432,-500.0,0.00019875,2]
[394981325,1764251538441,-1000.0,0.0001988,5]
[394981326,1764251538450,-1000.0,0.0001988,5]
[394981327,1764251538459,-1000.0,0.000199,5]
[394981328,1764251538468,-1000.0,0.000199,5]
[394981329,1764251538477,-169.06296648,0.00019906,2]
[394981330,1764251538486,-500.0,0.00019909,2]
[394981331,1764251538502,-154.98143481,0.00019912,2]
[394981332,1764251538519,-221.31317773,0.00019912,2]
[394981333,1764251538528,-447.47917635,0.00019912,2]
[394981334,1764251538538,-1329.49099837,0.00019912,2]
[394981335,1764251538547,-1341.72038273,0.00019912,2]
[394981336,1764251538557,-350.35410407,0.00019916,2]
[394981337,1764251538566,-272.8370893,0.00019916,2]
[394981338,1764251538576,-335.26194021,0.00019916,2]
[394981339,1764251538585,-1000.0,0.0001992,5]
[394981340,1764251538594,-1000.0,0.0001992,5]
[394981341,1764251538604,-223.73958814,0.00019932,2]
[394981342,1764251538613,-154.98143481,0.00019932,2]
[394981343,1764251538622,-1000.0,0.0001994,5]
[394981344,1764251538631,-1000.0,0.0001994,5]
[394981345,1764251538641,-1000.0,0.0001996,5]
[394981346,1764251538650,-1000.0,0.0001996,5]
[394981347,1764251538659,-1329.49099837,0.0001997,5]
[394981348,1764251538668,-1341.72038273,0.0001997,5]
[394981349,1764251538677,-335.26194021,0.00019974,5]
[394981350,1764251538687,-1000.0,0.0001998,5]
[394981351,1764251538696,-1000.0,0.0001998,5]
[394981352,1764251538706,-472.67443586,0.00019988,2]
[394981353,1764251538715,-800.0,0.00019999,2]
[394981354,1764251538725,-500.0,0.0002,2]
[394981355,1764251538734,-251.99029515,0.0002,21]
[394981356,1764251538743,-289.07018898,0.0002,14]
[394981357,1764251538755,-194.53,0.0002,24]
[394981358,1764251538764,-150.0,0.0002,2]
[394981359,1764251538773,-80110.14402595,0.0002,2]
[394981360,1764251538782,-1024.83830302,0.0002,10]
[394981361,1764251538791,-837.0,0.0002,2]
[394981362,1764251538802,-150.0,0.0002,2]
[394981363,1764251538811,-151.0,0.0002,7]
[394981364,1764251538819,-151.0,0.0002,7]
[394981365,1764251538829,-1000.0,0.0002,5]
[394981366,1764251538838,-1000.0,0.0002,5]
[394981367,1764251538848,-151.0,0.0002,7]
[394981368,1764251538857,-151.0,0.0002,7]
[394981369,1764251538866,-151.0,0.0002,7]
[394981370,1764251538876,-718.05138,0.0002,7]
[394981371,1764251538885,-718.05138,0.0002,7]
[394981372,1764251538894,-718.05138,0.0002,7]
[394981373,1764251538903,-718.05138,0.0002,7]
[394981374,1764251538912,-250.0,0.0002,10]
[394981375,1764251538921,-759.47111293,0.0002,2]
[394981376,1764251538931,-759.47111293,0.0002,2]
[394981377,1764251538940,-269.586166,0.0002,7]
[394981378,1764251538949,-269.586166,0.0002,7]
[394981379,1764251538958,-209.17765675,0.0002,2]
[394981380,1764251538968,-269.586166,0.0002,7]
[394981381,1764251538977,-269.586166,0.0002,7]
[394981382,1764251538988,-150.0,0.0002,2]
[394981383,1764251538998,-151.0,0.0002,7]
[394981384,1764251539007,-2642.83,0.0002,2]
[394981385,1764251539018,-1000.0,0.0002,2]
[394981386,1764251539028,-800.0,0.00020004,2]
[394981387,1764251539037,-1341.72038273,0.00020028,9]
[394981388,1764251539046,-1329.49099837,0.00020028,9]
[394981389,1764251539056,-447.47917635,0.00020031,9]
[394981390,1764251539065,-335.26194021,0.00020032,9]
[394981391,1764251539075,-499.3,0.00020039,2]
[394981392,1764251539084,-1341.72038273,0.00020085,13]
[394981393,1764251539093,-1329.49099837,0.00020085,13]
[394981394,1764251539103,-335.26194021,0.0002009,13]
[394981395,1764251539112,-250.0,0.000201,10]
[394981396,1764251539121,-1341.72038273,0.00020143,16]
[394981397,1764251539130,-1329.49099837,0.00020143,16]
[394981398,1764251539139,-335.26194021,0.00020148,16]
[394981399,1764251539148,-447.47917635,0.00020151,17]
[394981400,1764251539158,-272.8370893,0.00020156,17]
[394981401,1764251539293,-350.35410407,0.00020156,17]
[394981402,1764251539305,-169.06296648,0.00020186,20]
[394981403,1764251539314,-1348.794544,0.00020187,2]
[394981404,1764251539322,-250.0,0.000202,10]
[394981405,1764251539332,-1341.72038273,0.00020201,20]
[394981406,1764251539341,-1329.49099837,0.00020201,20]
[394981407,1764251539349,-335.26194021,0.00020205,20]
[394981408,1764251539358,-448.33530735,0.00020222,18]
[394981409,1764251539368,-1341.72038273,0.00020259,24]
[394981410,1764251539376,-1329.49099837,0.00020259,24]
[394981411,1764251539386,-335.26194021,0.00020263,24]
[394981412,1764251539395,-447.47917635,0.00020271,25]